[Event "Titled Tuesday Blitz April 25 Early 2023"]
[White "Erzhanov, Arman"]
[Black "Kohler, Aran"]
[WhiteFideId "4138821"]
[BlackFideId "1002856"]
[WhiteElo "2138"]
[BlackElo "2298"]
[Result "1-0"]
[Round "04"]
[TimeControl "180+2"]
[Date "2023.04.25"]
[WhiteClock "0:01:57"]
[BlackClock "0:01:26"]

1. e4 {[%clk 0:02:51]}  c5 {[%clk 0:02:59]} 2. Nf3 {[%clk 0:02:51]}  a6 {[%clk 0:03:00]} 3. c4 {[%clk 0:02:50]}  Nc6 {[%clk 0:02:58]} 4. Nc3 {[%clk 0:02:51]}  Nd4 {[%clk 0:02:56]} 5. Nxd4 {[%clk 0:02:46]}  cxd4 {[%clk 0:02:56]} 6. Ne2 {[%clk 0:02:46]}  e5 {[%clk 0:02:56]} 7. d3 {[%clk 0:02:46]}  Bb4+ {[%clk 0:02:54]} 8. Bd2 {[%clk 0:02:46]}  Qa5 {[%clk 0:02:53]} 9. a3 {[%clk 0:02:43]}  Bxd2+ {[%clk 0:02:52]} 10. Qxd2 {[%clk 0:02:44]}  Qxd2+ {[%clk 0:02:52]} 11. Kxd2 {[%clk 0:02:45]}  d6 {[%clk 0:02:52]} 12. b4 {[%clk 0:02:44]}  Nf6 {[%clk 0:02:50]} 13. h3 {[%clk 0:02:45]}  O-O {[%clk 0:02:49]} 14. f4 {[%clk 0:02:45]}  Nd7 {[%clk 0:02:45]} 15. f5 {[%clk 0:02:44]}  b5 {[%clk 0:02:44]} 16. Nc1 {[%clk 0:02:39]}  Nb6 {[%clk 0:02:31]} 17. cxb5 {[%clk 0:02:29]}  axb5 {[%clk 0:02:31]} 18. Nb3 {[%clk 0:02:29]}  Na4 {[%clk 0:02:21]} 19. Be2 {[%clk 0:02:28]}  Nc3 {[%clk 0:02:21]} 20. Rhc1 {[%clk 0:02:23]}  Bb7 {[%clk 0:02:20]} 21. Na5 {[%clk 0:02:22]}  Rxa5 {[%clk 0:02:09]} 22. bxa5 {[%clk 0:02:22]}  Ra8 {[%clk 0:02:09]} 23. Rxc3 {[%clk 0:02:22]}  dxc3+ {[%clk 0:02:08]} 24. Kxc3 {[%clk 0:02:22]}  Rxa5 {[%clk 0:02:09]} 25. Kb4 {[%clk 0:02:23]}  Ra8 {[%clk 0:01:52]} 26. Kxb5 {[%clk 0:02:23]}  Kf8 {[%clk 0:01:46]} 27. Kb6 {[%clk 0:02:23]}  Ba6 {[%clk 0:01:43]} 28. a4 {[%clk 0:02:23]}  Ke7 {[%clk 0:01:43]} 29. a5 {[%clk 0:02:22]}  Kd7 {[%clk 0:01:42]} 30. Rc1 {[%clk 0:02:23]}  Bc8 {[%clk 0:01:40]} 31. Rc7+ {[%clk 0:02:23]}  Kd8 {[%clk 0:01:39]} 32. Rxf7 {[%clk 0:02:21]}  Ra6+ {[%clk 0:01:40]} 33. Kb5 {[%clk 0:02:21]}  Ra8 {[%clk 0:01:38]} 34. Rxg7 {[%clk 0:02:19]}  Bd7+ {[%clk 0:01:36]} 35. Kb6 {[%clk 0:02:17]}  Rb8+ {[%clk 0:01:36]} 36. Ka7 {[%clk 0:02:17]}  Rb2 {[%clk 0:01:36]} 37. Bh5 {[%clk 0:02:09]}  Rb5 {[%clk 0:01:32]} 38. a6 {[%clk 0:02:09]}  Kc8 {[%clk 0:01:26]} 39. f6 {[%clk 0:01:57]} 1-0


[Site "https://www.chess.com"]

[Event "Titled Tuesday Blitz April 25 Early 2023"]
[White "Ramirez, Maria Eugenia"]
[Black "Bas Mas, Jose Joaquin"]
[WhiteFideId "3301680"]
[BlackFideId "22219064"]
[WhiteElo "1842"]
[BlackElo "2233"]
[Result "0-1"]
[Round "04"]
[TimeControl "180+2"]
[Date "2023.04.25"]
[WhiteClock "0:00:02"]
[BlackClock "0:00:16"]

1. e4 {[%clk 0:03:00]}  e6 {[%clk 0:03:00]} 2. d4 {[%clk 0:03:00]}  d5 {[%clk 0:03:01]} 3. exd5 {[%clk 0:03:01]}  exd5 {[%clk 0:03:01]} 4. c4 {[%clk 0:03:02]}  Nf6 {[%clk 0:03:01]} 5. Nf3 {[%clk 0:03:02]}  Bb4+ {[%clk 0:03:01]} 6. Nc3 {[%clk 0:03:02]}  O-O {[%clk 0:03:01]} 7. Be2 {[%clk 0:03:02]}  dxc4 {[%clk 0:03:00]} 8. Bxc4 {[%clk 0:03:02]}  Bg4 {[%clk 0:02:57]} 9. Be3 {[%clk 0:02:59]}  Nc6 {[%clk 0:02:54]} 10. O-O {[%clk 0:02:55]}  Re8 {[%clk 0:02:42]} 11. a3 {[%clk 0:02:53]}  Bd6 {[%clk 0:02:40]} 12. h3 {[%clk 0:02:50]}  Bh5 {[%clk 0:02:39]} 13. Nb5 {[%clk 0:02:38]}  a6 {[%clk 0:02:35]} 14. Nxd6 {[%clk 0:02:35]}  Qxd6 {[%clk 0:02:36]} 15. Be2 {[%clk 0:02:30]}  Nd5 {[%clk 0:02:33]} 16. Qb3 {[%clk 0:02:18]}  b5 {[%clk 0:02:11]} 17. Rac1 {[%clk 0:02:06]}  Nce7 {[%clk 0:02:08]} 18. Rfe1 {[%clk 0:01:57]}  Nf5 {[%clk 0:01:36]} 19. Ne5 {[%clk 0:01:52]}  Bxe2 {[%clk 0:01:35]} 20. Rxe2 {[%clk 0:01:51]}  c5 {[%clk 0:01:18]} 21. g4 {[%clk 0:01:05]}  c4 {[%clk 0:01:13]} 22. Qc2 {[%clk 0:00:57]}  Nfxe3 {[%clk 0:01:12]} 23. fxe3 {[%clk 0:00:56]}  f6 {[%clk 0:01:12]} 24. e4 {[%clk 0:00:30]}  Nf4 {[%clk 0:01:11]} 25. Nf3 {[%clk 0:00:12]}  Nxe2+ {[%clk 0:00:59]} 26. Qxe2 {[%clk 0:00:12]}  Qg3+ {[%clk 0:00:57]} 27. Qg2 {[%clk 0:00:12]}  Qxg2+ {[%clk 0:00:57]} 28. Kxg2 {[%clk 0:00:12]}  Rxe4 {[%clk 0:00:58]} 29. Kf2 {[%clk 0:00:09]}  Rd8 {[%clk 0:00:54]} 30. Rc2 {[%clk 0:00:08]}  Kf7 {[%clk 0:00:53]} 31. a4 {[%clk 0:00:08]}  Re7 {[%clk 0:00:49]} 32. axb5 {[%clk 0:00:08]}  axb5 {[%clk 0:00:50]} 33. g5 {[%clk 0:00:08]}  Ra7 {[%clk 0:00:49]} 34. gxf6 {[%clk 0:00:07]}  gxf6 {[%clk 0:00:50]} 35. Ke3 {[%clk 0:00:06]}  Ra2 {[%clk 0:00:47]} 36. Kf4 {[%clk 0:00:05]}  Rc8 {[%clk 0:00:41]} 37. Nh4 {[%clk 0:00:04]}  c3 {[%clk 0:00:33]} 38. Nf5 {[%clk 0:00:03]}  Rxb2 {[%clk 0:00:28]} 39. Rc1 {[%clk 0:00:02]}  Rc4 {[%clk 0:00:25]} 40. Nd6+ {[%clk 0:00:01]}  Ke6 {[%clk 0:00:25]} 41. Nxc4 {[%clk 0:00:02]}  bxc4 {[%clk 0:00:26]} 42. Rxc3 {[%clk 0:00:02]}  Kd5 {[%clk 0:00:27]} 43. Rg3 {[%clk 0:00:02]}  Kxd4 {[%clk 0:00:19]} 44. Kf5 {[%clk 0:00:02]}  Rf2+ {[%clk 0:00:18]} 45. Kg4 {[%clk 0:00:02]}  c3 {[%clk 0:00:17]} 46. Rg1 {[%clk 0:00:02]}  c2 {[%clk 0:00:16]} 0-1


[Site "https://www.chess.com"]

[Event "Titled Tuesday Blitz April 25 Early 2023"]
[White "Tymrakiewicz, Rafal"]
[Black "Kuchava, Ana"]
[WhiteFideId "1108832"]
[BlackFideId "13605348"]
[WhiteElo "2151"]
[BlackElo "2001"]
[Result "1-0"]
[Round "04"]
[TimeControl "180+2"]
[Date "2023.04.25"]
[WhiteClock "0:00:18"]
[BlackClock "0:00:02"]

1. d4 {[%clk 0:03:00]}  d5 {[%clk 0:02:55]} 2. Bg5 {[%clk 0:02:55]}  Nf6 {[%clk 0:02:50]} 3. e3 {[%clk 0:02:54]}  Bf5 {[%clk 0:02:47]} 4. c4 {[%clk 0:02:54]}  c6 {[%clk 0:02:44]} 5. Nc3 {[%clk 0:02:53]}  e6 {[%clk 0:02:44]} 6. Nf3 {[%clk 0:02:38]}  h6 {[%clk 0:02:43]} 7. Bxf6 {[%clk 0:02:35]}  Qxf6 {[%clk 0:02:41]} 8. Qb3 {[%clk 0:02:35]}  Qe7 {[%clk 0:02:37]} 9. Rc1 {[%clk 0:02:29]}  Bg4 {[%clk 0:02:12]} 10. Ne5 {[%clk 0:02:15]}  Bf5 {[%clk 0:02:09]} 11. Be2 {[%clk 0:02:10]}  f6 {[%clk 0:01:56]} 12. Nf3 {[%clk 0:01:45]}  Qd7 {[%clk 0:01:53]} 13. O-O {[%clk 0:01:33]}  Bd6 {[%clk 0:01:51]} 14. Nd2 {[%clk 0:01:28]}  O-O {[%clk 0:01:45]} 15. e4 {[%clk 0:01:28]}  dxe4 {[%clk 0:01:44]} 16. Ndxe4 {[%clk 0:01:28]}  Bc7 {[%clk 0:01:37]} 17. Rcd1 {[%clk 0:00:59]}  Kh7 {[%clk 0:01:31]} 18. g3 {[%clk 0:00:51]}  Bb6 {[%clk 0:01:26]} 19. c5 {[%clk 0:00:48]}  Bd8 {[%clk 0:01:13]} 20. Nd6 {[%clk 0:00:48]}  b6 {[%clk 0:01:09]} 21. Nxf5 {[%clk 0:00:48]}  exf5 {[%clk 0:01:09]} 22. d5 {[%clk 0:00:44]}  bxc5 {[%clk 0:00:58]} 23. dxc6 {[%clk 0:00:44]}  Qxc6 {[%clk 0:00:34]} 24. Nb5 {[%clk 0:00:44]}  Qb6 {[%clk 0:00:25]} 25. Qd5 {[%clk 0:00:26]}  Nc6 {[%clk 0:00:20]} 26. Qxf5+ {[%clk 0:00:22]}  Kh8 {[%clk 0:00:19]} 27. Bd3 {[%clk 0:00:19]}  Kg8 {[%clk 0:00:02]} 28. Nd6 {[%clk 0:00:18]} 1-0


[Site "https://www.chess.com"]

[Event "Titled Tuesday Blitz April 25 Early 2023"]
[White "Psakhis, Lev"]
[Black "Travadon, Loic"]
[WhiteFideId "2800012"]
[BlackFideId "26092131"]
[WhiteElo "2148"]
[BlackElo "2405"]
[Result "1-0"]
[Round "04"]
[TimeControl "180+2"]
[Date "2023.04.25"]
[WhiteClock "0:00:47"]
[BlackClock "0:00:33"]

1. c4 {[%clk 0:02:45]}  e5 {[%clk 0:02:57]} 2. Nc3 {[%clk 0:02:45]}  Nc6 {[%clk 0:02:57]} 3. g3 {[%clk 0:02:44]}  Bc5 {[%clk 0:02:55]} 4. Bg2 {[%clk 0:02:43]}  d6 {[%clk 0:02:56]} 5. e3 {[%clk 0:02:44]}  a6 {[%clk 0:02:55]} 6. Nge2 {[%clk 0:02:43]}  Ba7 {[%clk 0:02:55]} 7. d4 {[%clk 0:02:40]}  h5 {[%clk 0:02:52]} 8. h3 {[%clk 0:02:39]}  h4 {[%clk 0:02:51]} 9. g4 {[%clk 0:02:39]}  f5 {[%clk 0:02:52]} 10. gxf5 {[%clk 0:02:07]}  Bxf5 {[%clk 0:02:53]} 11. d5 {[%clk 0:02:07]}  Nce7 {[%clk 0:02:49]} 12. b3 {[%clk 0:02:03]}  Nf6 {[%clk 0:02:47]} 13. Bb2 {[%clk 0:02:03]}  g5 {[%clk 0:02:42]} 14. Qd2 {[%clk 0:02:02]}  g4 {[%clk 0:02:28]} 15. hxg4 {[%clk 0:02:00]}  Bxg4 {[%clk 0:02:29]} 16. Ne4 {[%clk 0:01:49]}  Nxe4 {[%clk 0:02:27]} 17. Bxe4 {[%clk 0:01:49]}  Qd7 {[%clk 0:02:28]} 18. O-O-O {[%clk 0:01:45]}  O-O-O {[%clk 0:02:27]} 19. Rdg1 {[%clk 0:01:44]}  Rdg8 {[%clk 0:02:23]} 20. Nc3 {[%clk 0:01:42]}  Nf5 {[%clk 0:02:20]} 21. Qd3 {[%clk 0:01:34]}  Ne7 {[%clk 0:01:52]} 22. f3 {[%clk 0:01:30]}  Bf5 {[%clk 0:01:51]} 23. Rxg8+ {[%clk 0:01:29]}  Rxg8 {[%clk 0:01:50]} 24. Rxh4 {[%clk 0:01:28]}  Rg1+ {[%clk 0:01:44]} 25. Kd2 {[%clk 0:01:28]}  Bxe4 {[%clk 0:01:42]} 26. Rh8+ {[%clk 0:01:18]}  Ng8 {[%clk 0:01:41]} 27. Nxe4 {[%clk 0:01:18]}  Rg2+ {[%clk 0:01:38]} 28. Kc3 {[%clk 0:01:16]}  Qg7 {[%clk 0:01:38]} 29. Rh4 {[%clk 0:01:04]}  a5 {[%clk 0:01:23]} 30. a3 {[%clk 0:00:57]}  Rg1 {[%clk 0:01:14]} 31. b4 {[%clk 0:00:55]}  Re1 {[%clk 0:01:07]} 32. c5 {[%clk 0:00:55]}  axb4+ {[%clk 0:01:06]} 33. axb4 {[%clk 0:00:54]}  Qg1 {[%clk 0:01:02]} 34. Rg4 {[%clk 0:00:51]}  Rc1+ {[%clk 0:00:44]} 35. Kb3 {[%clk 0:00:50]}  dxc5 {[%clk 0:00:34]} 36. Rxg1 {[%clk 0:00:47]}  c4+ {[%clk 0:00:34]} 37. Qxc4 {[%clk 0:00:47]}  Rxc4 {[%clk 0:00:33]} 38. Rxg8+ {[%clk 0:00:47]} 1-0


[Site "https://www.chess.com"]

[Event "Titled Tuesday Blitz April 25 Early 2023"]
[White "Barria Santos, Jose Guilherme"]
[Black "Tarasova, Viktoriya"]
[WhiteFideId "1939300"]
[BlackFideId "4175840"]
[WhiteElo "2266"]
[BlackElo "2182"]
[Result "0-1"]
[Round "04"]
[TimeControl "180+2"]
[Date "2023.04.25"]
[WhiteClock "0:00:42"]
[BlackClock "0:00:52"]

1. e4 {[%clk 0:03:00]}  e5 {[%clk 0:02:54]} 2. Nf3 {[%clk 0:03:00]}  Nc6 {[%clk 0:02:52]} 3. Bb5 {[%clk 0:03:00]}  Nf6 {[%clk 0:02:50]} 4. d3 {[%clk 0:02:59]}  Bc5 {[%clk 0:02:49]} 5. O-O {[%clk 0:02:58]}  Nd4 {[%clk 0:02:49]} 6. Nxd4 {[%clk 0:02:57]}  Bxd4 {[%clk 0:02:50]} 7. c3 {[%clk 0:02:56]}  Bb6 {[%clk 0:02:50]} 8. Bg5 {[%clk 0:02:42]}  h6 {[%clk 0:02:49]} 9. Bh4 {[%clk 0:02:41]}  c6 {[%clk 0:02:50]} 10. Ba4 {[%clk 0:02:41]}  O-O {[%clk 0:02:44]} 11. Re1 {[%clk 0:02:37]}  Bc7 {[%clk 0:02:38]} 12. Nd2 {[%clk 0:02:33]}  d6 {[%clk 0:02:30]} 13. h3 {[%clk 0:02:29]}  Be6 {[%clk 0:02:28]} 14. Nf3 {[%clk 0:02:24]}  b5 {[%clk 0:02:22]} 15. Bb3 {[%clk 0:02:23]}  Qe7 {[%clk 0:02:20]} 16. Qe2 {[%clk 0:02:15]}  a5 {[%clk 0:02:20]} 17. d4 {[%clk 0:02:06]}  a4 {[%clk 0:02:18]} 18. Bxe6 {[%clk 0:02:06]}  Qxe6 {[%clk 0:02:18]} 19. d5 {[%clk 0:01:55]}  cxd5 {[%clk 0:02:13]} 20. Bxf6 {[%clk 0:01:55]}  Qxf6 {[%clk 0:02:11]} 21. exd5 {[%clk 0:01:55]}  Rab8 {[%clk 0:02:07]} 22. Nd2 {[%clk 0:01:50]}  Qe7 {[%clk 0:02:00]} 23. c4 {[%clk 0:01:46]}  bxc4 {[%clk 0:01:52]} 24. Nxc4 {[%clk 0:01:44]}  f5 {[%clk 0:01:47]} 25. Rac1 {[%clk 0:01:42]}  Qf7 {[%clk 0:01:43]} 26. Red1 {[%clk 0:01:39]}  e4 {[%clk 0:01:37]} 27. Ne3 {[%clk 0:01:24]}  Bb6 {[%clk 0:01:33]} 28. Nc2 {[%clk 0:01:23]}  Bc5 {[%clk 0:01:28]} 29. Nd4 {[%clk 0:01:18]}  Qxd5 {[%clk 0:01:19]} 30. Nb5 {[%clk 0:01:02]}  Qxa2 {[%clk 0:01:17]} 31. Nxd6 {[%clk 0:01:02]}  Bxd6 {[%clk 0:01:15]} 32. Rxd6 {[%clk 0:01:00]}  Rxb2 {[%clk 0:01:16]} 33. Qf1 {[%clk 0:00:49]}  Rfb8 {[%clk 0:01:03]} 34. Rdc6 {[%clk 0:00:46]}  Kh7 {[%clk 0:00:58]} 35. Qc4 {[%clk 0:00:43]}  Qxc4 {[%clk 0:00:55]} 36. R6xc4 {[%clk 0:00:43]}  a3 {[%clk 0:00:52]} 37. Ra4 {[%clk 0:00:42]}  a2 {[%clk 0:00:52]} 0-1


[Site "https://www.chess.com"]

[Event "Titled Tuesday Blitz April 25 Early 2023"]
[White "Rudzinska, Michalina"]
[Black "Semenova, Alina"]
[WhiteFideId "1172883"]
[BlackFideId "24113875"]
[WhiteElo "2219"]
[BlackElo "1833"]
[Result "1-0"]
[Round "04"]
[TimeControl "180+2"]
[Date "2023.04.25"]
[WhiteClock "0:02:09"]
[BlackClock "0:01:11"]

1. e4 {[%clk 0:03:00]}  e6 {[%clk 0:02:59]} 2. d4 {[%clk 0:02:57]}  d5 {[%clk 0:02:59]} 3. Nd2 {[%clk 0:02:48]}  c5 {[%clk 0:02:58]} 4. exd5 {[%clk 0:02:47]}  Qxd5 {[%clk 0:02:58]} 5. Ngf3 {[%clk 0:02:46]}  cxd4 {[%clk 0:02:54]} 6. Bc4 {[%clk 0:02:46]}  Qd8 {[%clk 0:02:52]} 7. O-O {[%clk 0:02:47]}  Nc6 {[%clk 0:02:51]} 8. Nb3 {[%clk 0:02:48]}  Nf6 {[%clk 0:02:48]} 9. Nbxd4 {[%clk 0:02:47]}  Nxd4 {[%clk 0:02:48]} 10. Nxd4 {[%clk 0:02:48]}  Bc5 {[%clk 0:02:48]} 11. Nb3 {[%clk 0:02:47]}  Qxd1 {[%clk 0:02:47]} 12. Rxd1 {[%clk 0:02:47]}  Bb6 {[%clk 0:02:46]} 13. a4 {[%clk 0:02:40]}  a5 {[%clk 0:02:37]} 14. Bg5 {[%clk 0:02:38]}  Ne4 {[%clk 0:02:29]} 15. Bb5+ {[%clk 0:02:35]}  Kf8 {[%clk 0:02:27]} 16. Bd8 {[%clk 0:02:33]}  Bxf2+ {[%clk 0:01:46]} 17. Kf1 {[%clk 0:02:33]}  Bc5 {[%clk 0:01:36]} 18. Nxc5 {[%clk 0:02:13]}  Nxc5 {[%clk 0:01:36]} 19. Bb6 {[%clk 0:02:13]}  Ne4 {[%clk 0:01:35]} 20. Rd8+ {[%clk 0:02:13]}  Ke7 {[%clk 0:01:33]} 21. Rxh8 {[%clk 0:02:13]}  h6 {[%clk 0:01:17]} 22. Rd1 {[%clk 0:02:10]}  Kf6 {[%clk 0:01:11]} 23. Rdd8 {[%clk 0:02:09]} 1-0


[Site "https://www.chess.com"]

[Event "Titled Tuesday Blitz April 25 Early 2023"]
[White "Parkhov, Yair"]
[Black "Kalajzic, Ivan"]
[WhiteFideId "2813408"]
[BlackFideId "14506378"]
[WhiteElo "2421"]
[BlackElo "2203"]
[Result "1-0"]
[Round "04"]
[TimeControl "180+2"]
[Date "2023.04.25"]
[WhiteClock "0:01:54"]
[BlackClock "0:02:14"]

1. e4 {[%clk 0:03:00]}  Nc6 {[%clk 0:02:59]} 2. Nf3 {[%clk 0:02:59]}  d6 {[%clk 0:02:59]} 3. d4 {[%clk 0:02:58]}  Bg4 {[%clk 0:02:59]} 4. d5 {[%clk 0:02:58]}  Ne5 {[%clk 0:02:58]} 5. Nxe5 {[%clk 0:02:42]}  Bxd1 {[%clk 0:02:56]} 6. Bb5+ {[%clk 0:02:42]}  c6 {[%clk 0:02:55]} 7. dxc6 {[%clk 0:02:39]}  Qa5+ {[%clk 0:02:46]} 8. Nc3 {[%clk 0:02:38]}  a6 {[%clk 0:02:45]} 9. b4 {[%clk 0:02:18]}  Qxb5 {[%clk 0:02:44]} 10. Nxb5 {[%clk 0:02:16]}  axb5 {[%clk 0:02:44]} 11. cxb7 {[%clk 0:02:16]}  Rb8 {[%clk 0:02:44]} 12. Nc6 {[%clk 0:02:15]}  Rxb7 {[%clk 0:02:44]} 13. Kxd1 {[%clk 0:02:15]}  Rc7 {[%clk 0:02:44]} 14. Nd4 {[%clk 0:02:14]}  Rb7 {[%clk 0:02:43]} 15. a4 {[%clk 0:02:14]}  bxa4 {[%clk 0:02:42]} 16. Rxa4 {[%clk 0:02:15]}  Nf6 {[%clk 0:02:40]} 17. Ra8+ {[%clk 0:02:14]}  Kd7 {[%clk 0:02:40]} 18. f3 {[%clk 0:02:14]}  g6 {[%clk 0:02:40]} 19. b5 {[%clk 0:02:12]}  Bg7 {[%clk 0:02:39]} 20. Rxh8 {[%clk 0:02:11]}  Bxh8 {[%clk 0:02:40]} 21. Be3 {[%clk 0:02:11]}  Ne8 {[%clk 0:02:35]} 22. c4 {[%clk 0:02:07]}  Nc7 {[%clk 0:02:32]} 23. Kc2 {[%clk 0:02:07]}  e6 {[%clk 0:02:15]} 24. Kb3 {[%clk 0:02:05]}  d5 {[%clk 0:02:15]} 25. exd5 {[%clk 0:02:05]}  exd5 {[%clk 0:02:15]} 26. c5 {[%clk 0:02:05]}  Bxd4 {[%clk 0:02:14]} 27. c6+ {[%clk 0:02:05]}  Kc8 {[%clk 0:02:11]} 28. cxb7+ {[%clk 0:02:06]}  Kxb7 {[%clk 0:02:12]} 29. Bxd4 {[%clk 0:01:58]}  Nxb5 {[%clk 0:02:12]} 30. Rd1 {[%clk 0:01:56]}  Kc6 {[%clk 0:02:12]} 31. Kb4 {[%clk 0:01:55]}  Nd6 {[%clk 0:02:13]} 32. Ra1 {[%clk 0:01:54]}  Nc4 {[%clk 0:02:14]} 1-0


[Site "https://www.chess.com"]

[Event "Titled Tuesday Blitz April 25 Early 2023"]
[White "Nissinen, Niilo Man"]
[Black "Khoder, Akram"]
[WhiteFideId "30950767"]
[BlackFideId "5306914"]
[WhiteElo "1952"]
[BlackElo "2034"]
[Result "0-1"]
[Round "04"]
[TimeControl "180+2"]
[Date "2023.04.25"]
[WhiteClock "0:00:10"]
[BlackClock "0:01:17"]

1. e4 {[%clk 0:03:00]}  c5 {[%clk 0:02:59]} 2. Nf3 {[%clk 0:03:00]}  e6 {[%clk 0:02:57]} 3. d4 {[%clk 0:03:00]}  cxd4 {[%clk 0:02:58]} 4. Nxd4 {[%clk 0:03:00]}  a6 {[%clk 0:02:57]} 5. c4 {[%clk 0:03:01]}  Nf6 {[%clk 0:02:56]} 6. Nc3 {[%clk 0:03:00]}  Qc7 {[%clk 0:02:55]} 7. Be2 {[%clk 0:02:56]}  Bb4 {[%clk 0:02:55]} 8. Qd3 {[%clk 0:02:55]}  Nc6 {[%clk 0:02:54]} 9. O-O {[%clk 0:02:51]}  Ne5 {[%clk 0:02:54]} 10. Qg3 {[%clk 0:02:51]}  Bxc3 {[%clk 0:02:47]} 11. bxc3 {[%clk 0:02:52]}  Rg8 {[%clk 0:02:26]} 12. f3 {[%clk 0:01:54]}  d6 {[%clk 0:02:22]} 13. Ba3 {[%clk 0:01:50]}  Nh5 {[%clk 0:02:02]} 14. Qh4 {[%clk 0:01:41]}  g6 {[%clk 0:01:56]} 15. f4 {[%clk 0:01:29]}  Nxc4 {[%clk 0:01:56]} 16. Bxc4 {[%clk 0:01:29]}  Qxc4 {[%clk 0:01:55]} 17. Bxd6 {[%clk 0:01:30]}  f6 {[%clk 0:01:46]} 18. e5 {[%clk 0:01:08]}  Qxc3 {[%clk 0:01:43]} 19. Rad1 {[%clk 0:00:57]}  Kf7 {[%clk 0:01:39]} 20. g4 {[%clk 0:00:54]}  Qe3+ {[%clk 0:01:38]} 21. Kh1 {[%clk 0:00:50]}  b5 {[%clk 0:01:26]} 22. Qf2 {[%clk 0:00:15]}  Bb7+ {[%clk 0:01:26]} 23. Kg1 {[%clk 0:00:16]}  Qh3 {[%clk 0:01:16]} 24. gxh5 {[%clk 0:00:14]}  gxh5+ {[%clk 0:01:17]} 25. Qg3 {[%clk 0:00:10]} 0-1


[Site "https://www.chess.com"]

[Event "Titled Tuesday Blitz April 25 Early 2023"]
[White "Topalov, Aleksandar"]
[Black "Schut, Han"]
[WhiteFideId "925659"]
[BlackFideId "1005561"]
[WhiteElo "2151"]
[BlackElo "2024"]
[Result "1-0"]
[Round "04"]
[TimeControl "180+2"]
[Date "2023.04.25"]
[WhiteClock "0:01:09"]
[BlackClock "0:00:04"]

1. b3 {[%clk 0:03:00]}  e5 {[%clk 0:02:57]} 2. Bb2 {[%clk 0:03:00]}  Nc6 {[%clk 0:02:56]} 3. c4 {[%clk 0:03:01]}  Bd6 {[%clk 0:02:56]} 4. e3 {[%clk 0:03:01]}  Qe7 {[%clk 0:02:55]} 5. Nc3 {[%clk 0:03:00]}  f5 {[%clk 0:02:53]} 6. a3 {[%clk 0:03:00]}  Nf6 {[%clk 0:02:52]} 7. Qc2 {[%clk 0:03:00]}  e4 {[%clk 0:02:52]} 8. g3 {[%clk 0:02:51]}  O-O {[%clk 0:02:47]} 9. h4 {[%clk 0:02:47]}  Ne5 {[%clk 0:02:43]} 10. Be2 {[%clk 0:02:47]}  c6 {[%clk 0:02:41]} 11. Nh3 {[%clk 0:02:47]}  g6 {[%clk 0:02:33]} 12. Nf4 {[%clk 0:02:47]}  Nf3+ {[%clk 0:02:18]} 13. Bxf3 {[%clk 0:02:46]}  exf3 {[%clk 0:02:19]} 14. Qd1 {[%clk 0:02:43]}  Bxf4 {[%clk 0:01:44]} 15. gxf4 {[%clk 0:02:42]}  d5 {[%clk 0:01:44]} 16. cxd5 {[%clk 0:02:41]}  cxd5 {[%clk 0:01:45]} 17. Qxf3 {[%clk 0:02:38]}  Be6 {[%clk 0:01:39]} 18. Ne2 {[%clk 0:02:31]}  Rac8 {[%clk 0:01:28]} 19. Nd4 {[%clk 0:02:10]}  Bf7 {[%clk 0:01:22]} 20. Qg2 {[%clk 0:01:57]}  Qe4 {[%clk 0:00:58]} 21. Rg1 {[%clk 0:01:56]}  Qxg2 {[%clk 0:00:39]} 22. Rxg2 {[%clk 0:01:56]}  Ng4 {[%clk 0:00:26]} 23. f3 {[%clk 0:01:53]}  Nh6 {[%clk 0:00:26]} 24. h5 {[%clk 0:01:51]}  Rfe8 {[%clk 0:00:25]} 25. Kf2 {[%clk 0:01:47]}  Kf8 {[%clk 0:00:24]} 26. hxg6 {[%clk 0:01:46]}  hxg6 {[%clk 0:00:24]} 27. a4 {[%clk 0:01:42]}  Ng8 {[%clk 0:00:24]} 28. Ba3+ {[%clk 0:01:41]}  Kg7 {[%clk 0:00:23]} 29. Nxf5+ {[%clk 0:01:42]}  Kf6 {[%clk 0:00:23]} 30. Nd6 {[%clk 0:01:41]}  Rc2 {[%clk 0:00:22]} 31. Nxe8+ {[%clk 0:01:39]}  Bxe8 {[%clk 0:00:18]} 32. Ke2 {[%clk 0:01:30]}  d4 {[%clk 0:00:18]} 33. Kd3 {[%clk 0:01:27]}  Rc6 {[%clk 0:00:12]} 34. Bb2 {[%clk 0:01:26]}  Kf7 {[%clk 0:00:11]} 35. Bxd4 {[%clk 0:01:26]}  Bd7 {[%clk 0:00:11]} 36. Rh1 {[%clk 0:01:20]}  Bf5+ {[%clk 0:00:10]} 37. e4 {[%clk 0:01:20]}  Be6 {[%clk 0:00:10]} 38. Rh7+ {[%clk 0:01:19]}  Ke8 {[%clk 0:00:06]} 39. b4 {[%clk 0:01:18]}  Ne7 {[%clk 0:00:04]} 40. Ke3 {[%clk 0:01:15]}  Rd6 {[%clk 0:00:02]} 41. Bf6 {[%clk 0:01:11]}  Rd7 {[%clk 0:00:02]} 42. Rxe7+ {[%clk 0:01:10]}  Rxe7 {[%clk 0:00:03]} 43. Bxe7 {[%clk 0:01:10]}  Kxe7 {[%clk 0:00:04]} 44. Rxg6 {[%clk 0:01:09]} 1-0


[Site "https://www.chess.com"]

[Event "Titled Tuesday Blitz April 25 Early 2023"]
[White "Pourkashiyan, Atousa"]
[Black "Kiselev, Pavel"]
[WhiteFideId "12502014"]
[BlackFideId "4191102"]
[WhiteElo "2228"]
[BlackElo "2145"]
[Result "1-0"]
[Round "04"]
[TimeControl "180+2"]
[Date "2023.04.25"]
[WhiteClock "0:01:25"]
[BlackClock "0:02:05"]

1. e4 {[%clk 0:02:06]}  c5 {[%clk 0:02:54]} 2. d4 {[%clk 0:02:03]}  cxd4 {[%clk 0:02:51]} 3. c3 {[%clk 0:02:03]}  dxc3 {[%clk 0:02:50]} 4. Nxc3 {[%clk 0:02:03]}  Nc6 {[%clk 0:02:51]} 5. Nf3 {[%clk 0:02:03]}  d6 {[%clk 0:02:50]} 6. Bc4 {[%clk 0:02:03]}  Bd7 {[%clk 0:02:50]} 7. O-O {[%clk 0:02:03]}  Nf6 {[%clk 0:02:51]} 8. Bg5 {[%clk 0:02:02]}  e6 {[%clk 0:02:48]} 9. Nb5 {[%clk 0:02:01]}  Bc8 {[%clk 0:02:44]} 10. Bf4 {[%clk 0:01:48]}  e5 {[%clk 0:02:36]} 11. Ng5 {[%clk 0:01:41]}  exf4 {[%clk 0:02:20]} 12. Nxf7 {[%clk 0:01:39]}  Qe7 {[%clk 0:02:16]} 13. Nbxd6+ {[%clk 0:01:31]}  Kd7 {[%clk 0:02:16]} 14. Nf5+ {[%clk 0:01:31]}  Kc7 {[%clk 0:02:16]} 15. Nxe7 {[%clk 0:01:31]}  Bxe7 {[%clk 0:02:16]} 16. Nxh8 {[%clk 0:01:31]}  Bg4 {[%clk 0:02:14]} 17. Qc1 {[%clk 0:01:27]}  Rxh8 {[%clk 0:02:12]} 18. Qxf4+ {[%clk 0:01:26]}  Bd6 {[%clk 0:02:13]} 19. Qg5 {[%clk 0:01:26]}  Ne5 {[%clk 0:02:05]} 20. Qxg7+ {[%clk 0:01:25]} 1-0


[Site "https://www.chess.com"]